bitfinex/quotes_ETHUSD_20251130
["timestamp","ask_amount","ask_price","bid_price","bid_amount"]
[1764491262584,5.4308582,3016.5,3016.0,0.001]
[1764491263284,0.57866381,3016.5,3016.4,0.4755]
[1764491263490,0.211,3016.6,3016.4,0.9721]
[1764491263816,0.405504,3016.5,3016.4,0.9721]
[1764491264106,0.405504,3016.5,3016.4,0.4976]
[1764491264303,0.834704,3016.5,3016.4,0.001]
[1764491264504,1.51727381,3016.5,3016.4,0.001]
[1764491264693,1.16687381,3016.5,3016.4,0.001]
[1764491265113,1.06687381,3016.5,3016.4,0.001]
[1764491265599,4.48197409,3016.5,3016.4,0.001]
[1764491266897,4.93237409,3016.5,3016.4,0.001]
[1764491267093,5.14337409,3016.5,3016.4,0.001]
[1764491267480,4.69297409,3016.5,3016.4,0.001]
[1764491268598,0.616504,3016.5,3016.4,0.4755]
[1764491268781,0.213,3016.7,3016.4,0.9721]
[1764491268983,3.72240354,3016.7,3016.6,0.4745]
[1764491269292,0.618504,3016.7,3016.6,0.4745]
[1764491269488,3.93338449,3016.7,3016.6,0.4745]
[1764491270106,0.618504,3016.7,3016.6,0.4745]
[1764491270311,3.93338449,3016.7,3016.6,0.4745]
[1764491271091,0.618504,3016.7,3016.6,0.4745]
[1764491271308,0.618504,3016.7,3016.6,0.9711]
[1764491271684,3.93338449,3016.7,3016.6,0.9711]
[1764491271897,0.405504,3016.6,3016.4,0.001]
[1764491272092,0.405504,3016.6,3016.4,0.4976]
[1764491272305,0.405504,3016.6,3016.5,0.4709]
[1764491272502,0.002,3016.7,3016.5,0.4709]
[1764491272708,0.002,3016.7,3016.6,0.9431]
[1764491274024,0.002,3016.7,3016.4,0.001]
[1764491275023,0.4925,3016.7,3016.4,0.001]
[1764491275218,0.002,3016.7,3016.4,0.001]
[1764491275986,3.31688049,3016.7,3016.4,0.001]
[1764491276184,3.80738049,3016.7,3016.4,0.001]
[1764491277515,3.31688049,3016.7,3016.4,0.001]
[1764491278219,0.407504,3016.7,3016.6,0.4709]
[1764491278795,0.002,3016.7,3016.6,0.4709]
[1764491279000,0.002,3016.7,3016.6,0.9431]
[1764491279623,0.002,3016.7,3016.6,0.4709]
[1764491280500,0.002,3016.7,3016.6,4.25809038]
[1764491283545,0.002,3016.7,3016.6,5.01550902]
[1764491284608,0.002,3016.7,3016.6,4.25809038]
[1764491285040,0.8821,3016.7,3016.5,0.001]
[1764491285334,0.004,3016.6,3016.5,0.001]
[1764491285942,3.31899038,3016.6,3016.5,0.001]
[1764491286109,4.02300798,3016.6,3016.5,0.001]
[1764491286533,4.51350798,3016.6,3016.5,0.001]
[1764491286735,4.42851198,3016.6,3016.5,0.001]
[1764491286936,5.23001198,3016.6,3016.5,0.001]
[1764491287137,1.3245216,3016.6,3016.5,0.001]
[1764491287342,1.3205216,3016.6,3016.5,0.001]
[1764491287544,1.7102216,3016.6,3016.5,0.001]
[1764491287744,2.1997216,3016.6,3016.5,0.001]
[1764491287929,5.61471198,3016.6,3016.5,0.001]
[1764491291839,6.34030609,3016.6,3016.5,0.001]
[1764491295471,5.75080609,3016.6,3016.5,0.001]
[1764491295642,5.85080609,3016.6,3016.5,0.001]
[1764491295842,6.34030609,3016.6,3016.5,0.001]
[1764491298093,5.75080609,3016.6,3016.5,0.001]
[1764491298275,5.85080609,3016.6,3016.5,0.001]
[1764491298585,6.34030609,3016.6,3016.5,0.001]
[1764491299585,5.85080609,3016.6,3016.5,0.001]
[1764491299882,6.34030609,3016.6,3016.5,0.001]
[1764491306594,9.55027028,3016.6,3016.5,0.001]
[1764491309505,4.01900798,3016.6,3016.5,0.9717]
[1764491309668,3.31690637,3016.7,3016.5,0.9717]
[1764491309874,3.31690637,3016.7,3016.6,0.495]
[1764491309875,4.04250048,3016.7,3016.6,0.495]
[1764491310171,4.44800448,3016.7,3016.6,0.495]
[1764491310393,5.57637878,3016.7,3016.6,0.495]
[1764491311666,0.505504,3016.6,3016.5,0.001]
[1764491312169,0.505504,3016.6,3016.5,0.496]
[1764491312399,3.82049438,3016.6,3016.5,0.496]
[1764491314169,3.82049438,3016.6,3016.5,0.9717]
[1764491314571,3.82049438,3016.6,3016.5,0.496]
[1764491314804,5.06172539,3016.6,3016.5,0.496]
[1764491315404,5.06172539,3016.6,3016.5,0.9717]
[1764491315405,4.96172539,3016.6,3016.5,0.9717]
[1764491315609,5.06172539,3016.6,3016.5,0.496]
[1764491317005,0.002,3016.7,3016.5,0.496]
[1764491317205,4.12079438,3016.6,3016.5,0.001]
[1764491317406,4.22079438,3016.6,3016.5,0.001]
[1764491317711,5.3645586,3016.6,3016.5,0.001]
[1764491319027,5.8435586,3016.6,3016.5,0.001]
[1764491321432,6.56915271,3016.6,3016.5,0.001]
[1764491322449,6.09015271,3016.6,3016.5,0.001]
[1764491322753,6.30115271,3016.6,3016.5,0.001]
[1764491324207,5.5755586,3016.6,3016.5,0.001]
[1764491324535,4.7697546,3016.6,3016.5,0.496]
[1764491324701,4.03149438,3016.6,3016.5,0.496]
[1764491324903,0.002,3016.7,3016.5,0.9717]
[1764491325129,0.002,3016.7,3016.6,0.495]
[1764491325339,0.002,3016.7,3016.6,0.9707]
[1764491326106,3.997504,3016.6,3016.5,0.001]
[1764491326304,9.21302435,3016.6,3016.5,0.001]
[1764491326522,10.60062262,3016.6,3016.5,0.001]
[1764491327435,13.915613,3016.6,3016.5,0.001]
[1764491328005,0.405504,3016.4,3016.1,0.001]
[1764491328208,11.63472649,3016.2,3016.1,0.001]
[1764491328437,14.25386896,3016.2,3016.1,0.001]
[1764491328644,12.48975973,3016.2,3016.1,0.001]
[1764491329137,0.605504,3015.9,3015.7,0.001]
[1764491329343,6.62074536,3015.9,3015.7,0.001]
[1764491329636,7.09814536,3015.9,3015.7,0.001]
[1764491329840,8.13952452,3015.9,3015.7,0.001]
[1764491331419,7.01517137,3015.9,3015.7,0.001]
[1764491332141,1.13109811,3015.8,3014.1,0.4757]
[1764491332309,1.13109811,3015.8,3014.0,0.1814]
[1764491332310,5.50711726,3015.7,3014.3,0.4783]
[1764491332510,7.91824368,3015.7,3014.3,0.4783]
[1764491333334,7.91824368,3015.7,3014.0,0.1814]
[1764491333554,7.91824368,3015.7,3014.5,0.4783]
[1764491333757,11.23422338,3015.7,3014.5,0.4783]
[1764491336236,15.27988538,3015.7,3014.5,0.4783]
[1764491336553,28.54380418,3015.7,3014.5,0.4783]
[1764491336742,4.17601915,3015.1,3014.5,0.4783]
[1764491336944,1.35419603,3015.0,3014.5,0.4783]
[1764491337145,0.1,3014.6,3014.5,0.4783]
[1764491337355,0.311,3014.6,3014.5,0.4783]
[1764491337561,0.716504,3014.6,3014.5,0.9725]
[1764491337756,4.03369367,3014.6,3014.5,0.9725]
[1764491338161,4.03369367,3014.6,3014.5,0.4942]
[1764491339863,3.82269367,3014.6,3014.5,0.4942]
[1764491340065,4.03369367,3014.6,3014.5,0.4942]
[1764491340361,0.405504,3014.1,3014.0,0.1814]
[1764491340563,0.505504,3014.1,3014.0,0.1814]
[1764491340769,0.505504,3014.1,3014.0,1.1539]
[1764491341085,0.505504,3014.1,3014.0,0.4942]
[1764491341635,0.505504,3013.8,3013.7,0.4783]
[1764491341870,4.03457421,3013.8,3013.7,0.4783]
[1764491342169,0.716504,3013.8,3013.7,0.9725]
[1764491342759,4.03457421,3013.8,3013.7,0.9725]
[1764491343070,0.1,3013.3,3013.2,0.4783]
[1764491343571,0.1,3013.3,3013.2,0.4942]
[1764491343572,0.505504,3013.3,3013.2,0.4942]
[1764491343879,3.82412478,3013.3,3013.2,0.4942]
[1764491344655,3.82412478,3013.3,3013.2,0.9725]
[1764491345176,3.82412478,3013.3,3013.2,0.4942]
[1764491345362,0.405504,3013.2,3013.0,0.1895]
[1764491345563,0.1,3013.1,3013.0,0.1895]
[1764491345772,0.405504,3012.8,3012.6,0.4783]
[1764491345976,3.72471522,3012.8,3012.6,0.4783]
[1764491346176,0.505504,3012.8,3012.7,0.4942]
[1764491346694,0.505504,3012.8,3012.7,0.9725]
[1764491346986,0.1,3012.8,3012.7,0.9725]
[1764491347147,0.211,3013.4,3012.7,1.76692911]
[1764491347489,0.211,3013.4,3013.3,0.6744]
[1764491347658,0.211,3013.5,3013.3,0.6744]
[1764491347846,0.311,3013.5,3013.4,0.4783]
[1764491348172,0.405504,3013.4,3013.3,0.1802]
[1764491348342,0.405504,3013.4,3013.3,0.6585]
[1764491348579,0.405504,3013.4,3013.3,1.1527]
[1764491350307,0.616504,3013.4,3013.3,1.1527]
[1764491351415,0.405504,3013.4,3013.3,1.1527]
[1764491352213,3.72401465,3013.4,3013.3,1.1527]
[1764491353017,0.405504,3013.4,3013.3,1.1527]
[1764491355488,0.211,3013.7,3013.3,1.1527]
[1764491355683,0.211,3013.7,3012.8,0.03319171]
[1764491355887,0.505504,3013.2,3013.1,0.1812]
[1764491356329,3.82423491,3013.2,3013.1,1.1537]
[1764491357807,0.505504,3013.2,3013.1,1.1537]
[1764491358007,0.405504,3013.2,3013.1,1.1537]
[1764491358411,3.72423491,3013.2,3013.1,1.1537]
[1764491358611,0.405504,3013.2,3013.1,1.1537]
[1764491360138,0.1,3013.3,3013.1,1.1537]
[1764491360310,0.405504,3013.4,3013.2,0.9725]
[1764491360511,0.405504,3013.4,3013.2,0.4783]
[1764491360722,0.405504,3013.4,3013.3,0.9725]
[1764491363337,3.72401465,3013.4,3013.3,0.9725]
[1764491363747,3.82401465,3013.4,3013.3,0.9725]
[1764491364346,3.82401465,3013.4,3013.3,0.4942]
[1764491364552,4.55935668,3013.4,3013.3,0.4942]
[1764491365047,1.24084603,3013.4,3013.3,0.9817]
[1764491365351,3.82401465,3013.4,3013.3,0.9817]
[1764491365563,3.82401465,3013.4,3013.3,0.4942]
[1764491365728,3.82401465,3013.4,3013.1,0.6687]
[1764491365729,0.1,3013.2,3013.1,0.001]
[1764491365933,0.505504,3013.2,3013.1,0.001]
[1764491366149,0.505504,3013.2,3013.1,0.4623]
[1764491366452,3.82423491,3013.2,3013.1,0.4623]
[1764491366827,4.13163491,3013.2,3013.1,0.001]
[1764491367521,3.82423491,3013.2,3013.1,0.4623]
[1764491368327,5.34142098,3013.2,3013.1,0.001]
[1764491368538,4.84782098,3013.2,3013.1,0.001]
[1764491369364,5.34142098,3013.2,3013.1,0.001]
[1764491370249,5.81712098,3013.2,3013.1,0.001]
[1764491370653,9.03419881,3013.2,3013.1,0.001]
[1764491371369,8.54059881,3013.2,3013.1,0.001]
[1764491371936,4.53852098,3013.2,3013.1,0.4623]
[1764491372162,4.03523491,3013.2,3013.1,0.937]
[1764491373765,3.93523491,3013.2,3013.1,1.1172]
[1764491374133,3.93523491,3013.2,3013.1,0.4623]
[1764491374467,4.04363819,3013.9,3013.1,1.1172]
[1764491374691,0.1,3013.5,3013.2,0.936]
[1764491374833,0.211,3013.4,3013.2,0.936]
[1764491375036,0.405504,3013.3,3013.2,0.936]
[1764491375366,0.405504,3013.3,3013.2,0.4747]
[1764491375666,0.405504,3013.3,3013.2,0.936]
[1764491375963,0.405504,3013.3,3013.2,0.4613]
[1764491376335,0.405504,3013.3,3013.2,0.936]
[1764491377066,3.72412478,3013.3,3013.2,0.936]
[1764491377438,0.405504,3013.3,3013.2,0.936]
[1764491379284,3.72412478,3013.3,3013.2,0.936]
[1764491379488,0.616504,3013.3,3013.2,0.936]
[1764491380090,3.93512478,3013.3,3013.2,0.936]
[1764491380263,3.93512478,3013.3,3013.1,0.001]
[1764491380264,4.97787823,3013.3,3013.1,0.001]
[1764491380583,3.93512478,3013.3,3013.2,0.4613]
[1764491380782,0.616504,3013.3,3013.2,0.4613]
[1764491380986,0.616504,3013.3,3013.2,0.936]
[1764491383988,3.93512478,3013.3,3013.2,0.936]
[1764491384288,0.616504,3013.3,3013.2,0.4613]
[1764491384669,0.616504,3013.3,3013.2,0.936]
[1764491387093,0.405504,3013.6,3013.2,0.936]
[1764491387308,1.04833685,3013.6,3013.2,0.936]
[1764491388792,4.36672398,3013.6,3013.2,0.936]
[1764491388984,4.36672398,3013.6,3013.2,0.4613]
[1764491389189,11.29958894,3013.6,3013.2,0.4613]
[1764491389389,0.551,3013.3,3013.1,0.001]
[1764491390584,0.1,3013.3,3013.2,0.4613]
[1764491390990,3.82412478,3013.3,3013.2,0.4613]
[1764491391504,0.505504,3013.3,3013.2,0.4613]
[1764491392204,3.82414633,3013.3,3013.1,0.001]
[1764491393309,3.82414633,3013.3,3013.2,0.4973]
[1764491393607,4.68672802,3013.3,3013.1,0.001]
[1764491393845,0.965404,3013.2,3013.1,0.001]
[1764491395245,4.28413491,3013.2,3013.1,0.001]
[1764491396113,4.83843491,3013.2,3013.1,0.001]
[1764491396511,4.38413491,3013.2,3013.1,0.001]
[1764491396710,4.83843491,3013.2,3013.1,0.001]
[1764491397016,5.97585042,3013.2,3013.1,0.001]
[1764491397459,5.52155042,3013.2,3013.1,0.001]
[1764491397839,5.97585042,3013.2,3013.1,0.001]
[1764491400358,0.211,3013.2,3013.1,1.1473]
[1764491400529,3.31807021,3013.8,3013.1,1.1473]
[1764491400727,0.93659411,3013.7,3013.2,0.9604]
[1764491401133,0.405504,3013.6,3013.3,0.4631]
[1764491401334,0.405504,3013.4,3013.3,0.4631]
[1764491401555,3.31773995,3014.1,3013.3,0.4631]
[1764491401754,6.63518097,3014.3,3014.0,0.4973]
[1764491401960,6.6354799,3014.1,3013.3,0.4631]
[1764491402158,0.1,3013.9,3013.3,0.4631]
[1764491402557,0.1,3013.9,3013.8,0.4973]
[1764491403179,0.505504,3013.9,3013.8,0.4973]
[1764491404149,0.505504,3013.9,3013.8,0.9604]
[1764491404546,3.72346411,3013.9,3013.8,0.9604]
[1764491405169,3.72346411,3013.9,3013.8,0.4973]
[1764491406744,3.41721833,3014.6,3013.8,4.27847021]
[1764491407063,0.405504,3014.3,3013.2,0.72559411]
[1764491407266,0.505504,3014.3,3013.6,0.4631]
[1764491407464,0.405504,3014.5,3014.2,0.6832]
[1764491407672,0.002,3015.9,3014.8,0.3408]
[1764491407868,0.002,3015.9,3015.5,0.3408]
[1764491408382,0.002,3015.9,3015.2,6.53357706]
[1764491408383,4.15117783,3015.6,3014.5,0.3408]
[1764491408577,4.15117783,3015.6,3014.2,0.1859]
[1764491408578,0.4767,3015.3,3014.2,0.1859]
[1764491408776,0.616504,3015.2,3014.3,0.3408]
[1764491408991,0.002,3015.6,3015.4,0.3408]
[1764491409149,0.211,3015.5,3015.4,0.3408]
[1764491409483,1.548604,3015.5,3014.6,0.3408]
[1764491409694,0.1,3015.4,3014.6,0.3408]
[1764491410256,3.41638452,3015.4,3014.6,3.65793707]
[1764491410460,3.41638452,3015.4,3014.6,1.03833025]
[1764491410657,0.405504,3015.3,3014.2,0.1859]
[1764491410886,1.58649811,3015.3,3014.2,0.1859]
[1764491411049,0.72559411,3015.0,3013.2,3.31873091]
[1764491411249,0.405504,3014.6,3013.7,0.3408]
[1764491411476,0.211,3014.5,3013.7,0.3408]
[1764491412687,0.4767,3013.8,3013.3,0.72559411]
[1764491412993,0.4767,3013.8,3013.0,0.3418]
[1764491412994,0.1,3013.8,3013.0,0.3418]
[1764491413177,0.211,3013.9,3013.7,0.3408]
[1764491413355,6.73459942,3014.5,3013.8,0.3408]
[1764491413356,0.211,3014.0,3013.8,0.3408]
[1764491413552,0.211,3014.1,3013.8,0.3408]
[1764491413793,0.211,3014.1,3013.4,0.3408]
[1764491413968,0.1,3013.9,3013.2,0.0331873]
[1764491414159,0.1,3013.9,3013.3,0.38796879]
[1764491414483,0.405504,3014.0,3013.4,0.0331851]
[1764491414696,3.7234581,3014.0,3013.4,0.0331851]
[1764491415890,7.2524122,3014.0,3013.4,0.0331851]
[1764491416211,0.1,3013.9,3013.4,0.0331851]
[1764491416788,0.1,3013.9,3013.2,0.3739873]
[1764491416952,3.41805698,3013.9,3013.2,0.3739873]
[1764491418058,6.73611396,3013.9,3013.2,0.3739873]
[1764491418257,3.41805698,3013.9,3013.2,3.69271187]
[1764491418483,3.41805698,3013.9,3013.3,0.38796119]
[1764491418692,3.41805698,3013.9,3013.4,0.0331851]
[1764491419262,0.4767,3013.5,3013.1,0.001]
[1764491419462,0.4554,3013.8,3013.1,0.001]
[1764491419463,0.4767,3013.2,3013.1,0.001]
[1764491419785,1.437604,3013.2,3013.1,0.001]
[1764491420186,1.648604,3013.2,3013.1,0.001]
[1764491421006,4.96733491,3013.2,3013.1,0.001]
[1764491421205,5.79592941,3013.2,3013.1,0.001]
[1764491422477,10.69744768,3013.2,3013.1,0.001]
[1764491424512,10.69744768,3013.2,3013.0,0.001]
[1764491424719,10.69744768,3013.2,3012.7,0.001]
[1764491424720,0.505504,3012.9,3012.7,0.001]
[1764491425019,2.00819811,3012.9,3012.7,0.001]
[1764491425312,9.74808792,3012.9,3012.7,0.001]
[1764491425477,0.505504,3012.6,3012.5,0.001]
[1764491425679,8.78932004,3012.6,3012.5,0.001]
[1764491425884,9.28302004,3012.6,3012.5,0.001]
[1764491428210,4.20239588,3012.6,3012.5,0.001]
[1764491428411,4.10789188,3012.6,3012.5,0.001]
[1764491429100,5.67623586,3012.6,3012.5,0.001]
[1764491429311,6.08173986,3012.6,3012.5,0.001]
[1764491429609,6.80733397,3012.6,3012.5,0.001]
[1764491429912,6.21363397,3012.6,3012.5,0.001]
[1764491430220,5.58803986,3012.6,3012.5,0.001]
[1764491430524,6.08173986,3012.6,3012.5,0.001]
[1764491431986,5.87073986,3012.6,3012.5,0.001]
[1764491432188,6.80733397,3012.6,3012.5,0.001]
[1764491432413,6.90733397,3012.6,3012.5,0.001]
[1764491432580,6.90733397,3012.6,3012.4,0.001]
[1764491432914,0.505504,3012.2,3012.1,0.001]
[1764491433110,0.982804,3012.2,3012.1,0.001]
[1764491433280,1.476504,3012.2,3012.1,0.001]
[1764491433481,1.687504,3012.2,3012.1,0.001]
[1764491433809,1.9562544,3012.2,3012.1,0.001]
[1764491434315,6.00168119,3012.2,3012.1,0.001]
[1764491435911,5.79068119,3012.2,3012.1,0.001]
[1764491436113,6.00168119,3012.2,3012.1,0.001]
[1764491436305,5.79068119,3012.2,3012.1,0.001]
[1764491436490,6.00168119,3012.2,3012.1,0.001]
[1764491437104,5.79068119,3012.2,3012.1,0.001]
[1764491437306,6.00168119,3012.2,3012.1,0.001]
[1764491437613,5.90168119,3012.2,3012.1,0.001]
[1764491438121,4.47138708,3012.2,3012.1,0.001]
[1764491438300,0.311,3012.5,3012.1,0.7763]
[1764491438494,0.311,3012.5,3012.4,0.3411]
[1764491440305,0.1,3012.5,3012.4,0.6822]
[1764491440513,0.211,3012.8,3012.4,0.6822]
[1764491440735,0.211,3012.8,3012.5,0.3411]
[1764491440890,0.211,3012.8,3012.1,3.41401892]
[1764491441195,0.1,3012.4,3012.2,0.34140189]
[1764491441393,0.312,3012.4,3012.1,0.0941]
[1764491441630,0.312,3012.4,3012.3,0.3411]
[1764491442845,3.63161226,3012.4,3012.3,0.3411]
[1764491442994,0.405504,3012.3,3012.1,0.0941]
[1764491443519,0.1,3012.4,3012.2,0.6822]
[1764491443708,0.002,3012.5,3012.3,0.3411]
[1764491443889,0.002,3012.5,3012.4,0.3411]
[1764491444090,0.002,3012.5,3012.4,0.6822]
[1764491444921,0.002,3012.5,3012.4,4.00181226]
[1764491445126,0.002,3012.5,3012.4,4.73396591]
[1764491446306,0.002,3012.9,3012.4,8.05357817]
[1764491446508,0.002,3012.9,3012.8,0.3411]
[1764491446894,0.002,3012.9,3012.8,0.6822]
[1764491448223,0.002,3012.9,3012.8,0.3411]
[1764491448625,0.002,3012.9,3012.4,4.05172372]
[1764491448826,0.1,3012.8,3012.5,0.74627237]
[1764491449125,3.41920501,3012.8,3012.4,0.73215365]
[1764491449324,3.41920501,3012.8,3012.2,0.3411]
[1764491449513,3.41920501,3012.8,3012.2,1.06669411]
[1764491449827,3.41920501,3012.8,3012.2,3.66091415]
[1764491449994,0.002,3012.9,3012.7,0.3411]
[1764491450198,0.002,3012.9,3012.8,0.3411]
[1764491450404,3.42106136,3012.9,3012.2,1.06669411]
[1764491450603,3.42106136,3012.9,3012.2,1.51486449]
[1764491450826,3.42106136,3012.9,3012.2,0.78927038]
[1764491451255,6.74012272,3012.9,3012.2,0.3411]
[1764491451595,3.42106136,3012.9,3012.2,0.3411]
[1764491451801,3.42106136,3012.9,3012.3,0.03319722]
[1764491452002,3.63206136,3012.9,3012.3,0.03319722]
[1764491452240,3.63206136,3012.9,3012.3,0.3411]
[1764491454243,0.313,3012.9,3012.3,3.66081431]
[1764491454534,0.213,3012.9,3012.8,0.3411]
[1764491454735,3.53206136,3012.9,3012.8,0.3411]
[1764491455115,3.53206136,3012.9,3012.1,3.75513319]
[1764491455319,0.1,3012.8,3012.2,0.3411]
[1764491455820,3.41921607,3012.8,3012.2,3.66087844]
[1764491456020,3.41921607,3012.8,3012.7,0.3411]
[1764491456934,3.41921607,3012.8,3012.3,0.3411]
[1764491457109,0.1,3012.7,3012.1,3.41402516]
[1764491457314,0.1,3012.7,3012.3,0.3411]
[1764491457527,0.1,3012.7,3012.6,0.3411]
[1764491457737,0.1,3012.8,3012.6,0.3411]
[1764491458142,3.41926295,3012.8,3012.6,0.3411]
[1764491459246,0.1,3012.8,3012.6,0.3411]
[1764491459642,3.41919125,3012.8,3012.6,0.3411]
[1764491459828,3.41919125,3012.8,3012.7,0.3411]
[1764491460027,3.41919125,3012.8,3012.3,0.3411]
[1764491460956,3.53207082,3012.9,3012.7,0.3411]
[1764491460957,0.002,3012.9,3012.7,0.3411]
[1764491461173,0.002,3012.9,3012.8,0.6822]
[1764491461329,0.002,3012.9,3012.8,0.3411]
[1764491461526,0.002,3012.9,3012.4,0.72559411]
[1764491461862,0.002,3012.9,3012.5,0.48060506]
[1764491462067,0.002,3012.8,3012.5,0.82170506]
[1764491462562,0.002,3012.8,3012.7,0.3411]
[1764491462928,0.477,3012.8,3012.5,0.001]
[1764491463461,0.002,3012.8,3012.5,0.001]
[1764491464467,0.1,3012.7,3012.5,0.001]
[1764491464665,3.41938865,3012.7,3012.5,0.001]
[1764491464850,0.475,3012.6,3012.5,0.001]
[1764491465059,3.41938865,3012.7,3012.5,0.001]
[1764491465263,0.475,3012.6,3012.5,0.001]
[1764491465647,4.1634752,3012.7,3012.5,0.001]
[1764491466863,7.48286385,3012.7,3012.5,0.001]
[1764491467847,0.405504,3012.6,3012.5,0.001]
[1764491468052,1.467804,3012.6,3012.5,0.001]
[1764491468236,2.37417079,3012.6,3012.5,0.001]
[1764491468436,3.0997649,3012.6,3012.5,0.001]
[1764491468733,2.8234649,3012.6,3012.5,0.001]
[1764491468932,6.63015678,3012.6,3012.5,0.001]
[1764491471835,6.41915678,3012.6,3012.5,0.001]
[1764491472159,6.63015678,3012.6,3012.5,0.001]
[1764491472335,6.73015678,3012.6,3012.5,0.001]
[1764491472963,6.63015678,3012.6,3012.5,0.001]
[1764491473153,6.41915678,3012.6,3012.5,0.001]
[1764491473358,6.63015678,3012.6,3012.5,0.001]
[1764491473985,6.41915678,3012.6,3012.5,0.001]
[1764491474190,4.83098599,3012.6,3012.5,0.001]
[1764491474334,5.23648999,3012.6,3012.5,0.001]
[1764491474837,5.02548999,3012.6,3012.5,0.001]
[1764491475076,5.23648999,3012.6,3012.5,0.001]
[1764491475238,5.72378999,3012.6,3012.5,0.001]
[1764491475438,6.62830785,3012.6,3012.5,0.001]
[1764491475637,0.6655,3011.5,3010.1,0.001]
[1764491475842,0.405504,3010.8,3010.1,0.001]
[1764491476139,0.211,3010.7,3010.2,0.3441]
[1764491476342,0.211,3010.6,3010.2,0.3441]
[1764491476760,0.211,3010.6,3010.5,0.3451]
[1764491478466,0.405504,3010.8,3010.5,0.3451]
[1764491478770,0.405504,3010.8,3010.5,0.001]
[1764491479069,0.4873,3011.9,3010.5,0.37831707]
[1764491479279,0.4873,3011.9,3010.5,0.001]
[1764491479280,0.6655,3010.6,3010.5,0.001]
[1764491479597,1.383004,3010.6,3010.5,0.001]
[1764491479794,1.870304,3010.6,3010.5,0.001]
[1764491480093,2.0573344,3010.6,3010.5,0.001]
[1764491481291,6.10452553,3010.6,3010.5,0.001]
[1764491485985,0.405504,3009.9,3009.6,0.2991]
[1764491486159,0.1,3010.5,3009.7,0.0332259]
[1764491486359,0.212,3010.3,3009.9,0.2991]
[1764491486786,0.212,3010.3,3010.2,0.3472]
[1764491487287,3.53392804,3010.3,3010.2,0.3472]
[1764491487491,0.212,3010.3,3010.2,0.3472]
[1764491487893,3.63392804,3010.3,3010.0,0.0481]
[1764491488080,0.312,3010.3,3010.2,0.2991]
[1764491488395,0.212,3010.3,3010.2,0.2991]
[1764491488581,3.53392804,3010.3,3010.2,0.2991]
[1764491488782,0.212,3010.3,3010.2,0.2991]
[1764491489092,0.03320619,3010.4,3010.2,0.2991]
[1764491489296,0.03320619,3011.4,3010.3,3.62094638]
[1764491489496,0.03320619,3011.7,3011.3,0.457]
[1764491489795,0.03320619,3011.7,3010.6,0.2991]
[1764491489796,0.4825,3011.4,3010.6,0.2991]
[1764491489992,0.1,3011.2,3010.6,0.2991]
[1764491490167,0.03320619,3011.1,3010.6,0.2991]
[1764491490565,0.405504,3011.0,3010.6,0.2991]
[1764491490763,0.03320619,3010.9,3010.3,3.32190676]
[1764491490962,0.03320619,3010.9,3010.2,1.02469411]
[1764491490963,0.1,3010.8,3010.2,1.02469411]
[1764491491196,0.03320619,3010.9,3010.3,0.2991]
[1764491491403,3.35447225,3010.9,3010.8,0.2991]
[1764491491604,0.13320619,3010.9,3010.8,0.2991]
[1764491492083,3.45447225,3010.9,3010.8,0.2991]
[1764491492478,0.505504,3011.1,3010.8,0.2991]
[1764491492795,0.4509,3011.7,3011.0,0.2991]
[1764491492796,0.72559411,3011.7,3011.0,0.2991]
[1764491492996,0.1,3011.4,3011.1,0.457]
[1764491493297,0.212,3011.4,3010.6,0.72559411]
[1764491493595,0.212,3011.4,3010.3,3.3219023]
[1764491493596,0.48410619,3011.3,3010.2,0.43949145]
[1764491493767,0.1,3010.7,3010.1,0.2991]
[1764491493963,0.1,3010.7,3010.6,0.2991]
[1764491495205,0.03320619,3010.8,3010.6,0.2991]
[1764491495502,3.76008656,3010.8,3010.7,0.2991]
[1764491496000,3.76008656,3010.8,3010.3,0.2991]
[1764491496202,3.86008656,3010.8,3010.3,0.2991]
[1764491496402,3.76008656,3010.8,3010.1,4.04769576]
[1764491496607,0.03320619,3010.8,3010.2,0.2991]
[1764491496809,0.1,3011.3,3010.7,0.2991]
[1764491497098,0.405504,3011.2,3010.7,0.2991]
[1764491497484,3.53280515,3011.4,3011.1,0.457]
[1764491497691,3.45410369,3011.3,3010.8,0.2991]
[1764491497881,0.405504,3011.2,3010.5,0.2991]
[1764491498088,0.13320619,3011.1,3010.5,0.2991]
[1764491498674,0.13320619,3011.1,3011.0,0.2991]
[1764491498873,0.43871019,3011.2,3011.0,0.2991]
[1764491499085,0.43871019,3011.2,3010.5,0.3001]
[1764491499086,0.43871019,3011.2,3011.1,0.2991]
[1764491499906,3.75964536,3011.2,3011.1,0.457]
[1764491500407,0.03320619,3011.2,3011.1,0.457]
[1764491500608,0.312,3011.3,3011.1,0.457]
[1764491500790,0.312,3011.3,3011.2,0.2991]
[1764491501300,0.212,3011.3,3011.2,0.2991]
[1764491503209,0.002,3011.4,3011.2,0.2991]
[1764491503416,0.002,3011.4,3011.3,0.2991]
[1764491503582,3.32271461,3011.4,3011.1,0.1579]
[1764491504711,6.64342922,3011.4,3011.1,0.1579]
[1764491504914,7.83374316,3011.4,3010.7,3.62051867]
[1764491505210,0.1,3011.3,3010.7,3.62051867]
[1764491505577,3.42083449,3011.3,3010.7,3.62051867]
[1764491505982,0.1,3011.3,3011.2,0.2991]
[1764491506182,0.002,3011.4,3011.2,0.2991]
[1764491506380,0.002,3011.4,3011.3,0.2991]